bitfinex/quotes_ETHUSD_20220106
["timestamp","ask_amount","ask_price","bid_price","bid_amount"]
[1641428351266,46.35170527,3530.7,3529.6,0.112837]
[1641428351464,46.05,3530.5,3529.6,0.02471597]
[1641428351668,0.01282824,3530.1,3529.6,0.02471597]
[1641428352067,2.17175877,3530.0,3529.6,0.02471597]
[1641428352469,2.12119035,3530.0,3529.6,0.02471597]
[1641428352667,2.12119035,3530.0,3529.7,0.00113685]
[1641428353721,3.8262,3530.6,3529.7,0.00113685]
[1641428354119,0.00113685,3530.1,3529.7,0.00113685]
[1641428356764,0.00113685,3530.1,3529.6,0.345]
[1641428356969,0.00113685,3530.1,3530.0,96.81961518]
[1641428357370,0.00113685,3530.1,3530.0,98.41961518]
[1641428357570,0.00113685,3530.1,3530.0,3.01961518]
[1641428357776,0.00113685,3530.1,3529.8,1.345443]
[1641428357973,0.00113685,3530.1,3529.4,1.4163462]
[1641428358174,0.00113685,3530.1,3529.3,0.34841054]
[1641428358370,0.00113685,3530.1,3529.5,0.00227369]
[1641428358570,0.00113685,3530.1,3529.4,0.00284212]
[1641428358972,0.00113685,3530.1,3529.6,1.30253504]
[1641428359371,0.00113685,3530.1,3529.6,1.90253504]
[1641428359572,0.00113685,3530.1,3529.8,0.3]
[1641428359973,0.00113685,3530.1,3529.6,0.6]
[1641428360272,0.00113685,3530.1,3529.4,1.87755212]
[1641428360713,0.00113685,3530.1,3529.5,0.00227369]
[1641428362112,0.00113685,3530.1,3528.8,0.00625266]
[1641428362314,0.00113685,3530.1,3528.7,0.59380266]
[1641428362717,0.00682108,3530.0,3528.7,0.59380266]
[1641428363116,0.00625266,3529.9,3528.7,0.59380266]
[1641428363320,0.00625266,3529.9,3528.7,0.89380266]
[1641428363516,1.06860845,3529.8,3528.7,1.19380266]
[1641428363716,0.00568424,3529.8,3528.8,2.11170547]
[1641428363918,0.00511581,3529.7,3528.8,2.12071176]
[1641428364371,4.05620985,3531.1,3528.8,2.12071176]
[1641428364372,0.00454739,3529.6,3528.8,3.12071176]
[1641428364770,0.00397897,3529.5,3528.8,3.12071176]
[1641428364971,0.00397897,3529.5,3529.4,47.72795512]
[1641428365171,1.2612958,3530.8,3529.4,1.37795512]
[1641428365372,0.19530985,3531.1,3529.4,2.31538512]
[1641428365574,0.01080005,3530.7,3529.5,2.11025641]
[1641428365772,0.01080005,3530.7,3529.5,2.44668349]
[1641428365977,0.19530985,3531.1,3529.6,0.345]
[1641428365980,0.01023162,3530.6,3529.6,0.345]
[1641428366172,0.01023162,3530.6,3529.7,2.40042674]
[1641428366372,0.0096632,3530.5,3529.8,0.345]
[1641428366774,0.19530985,3531.1,3529.8,2.46459287]
[1641428366775,0.00909478,3530.4,3529.8,2.46459287]
[1641428366974,0.00909478,3530.4,3529.9,0.00096276]
[1641428367173,0.19530985,3531.1,3529.9,0.00096276]
[1641428367174,0.00852635,3530.3,3529.9,0.00096276]
[1641428367577,0.00795793,3530.2,3529.9,0.00096276]
[1641428367778,0.00795793,3530.2,3529.9,1.41711996]
[1641428368018,0.00738951,3530.1,3530.0,0.3]
[1641428368219,0.00738951,3530.1,3530.0,2.4117571]
[1641428369024,0.00738951,3530.1,3530.0,4.65423437]
[1641428369224,0.00738951,3530.1,3530.0,5.74323425]
[1641428369425,0.00738951,3530.1,3530.0,70.19323425]
[1641428370223,0.00738951,3530.1,3530.0,70.15730687]
[1641428370424,0.00474268,3530.1,3530.0,5.00730687]
[1641428370640,0.00474268,3530.1,3530.0,2.89554977]
[1641428370826,0.00474268,3530.1,3530.0,4.99319233]
[1641428371228,0.00474268,3530.1,3530.0,5.99319233]
[1641428371427,0.00474268,3530.1,3530.0,4.99319233]
[1641428371767,0.00474268,3530.1,3530.0,1.0530725]
[1641428371966,0.00474268,3530.1,3530.0,0.345]
[1641428372366,0.00474268,3530.1,3529.9,0.00096276]
[1641428372774,0.00417425,3530.0,3529.9,0.00096276]
[1641428373174,0.00985849,3530.0,3529.9,0.00096276]
[1641428379262,0.00985849,3530.0,3529.9,2.10044928]
[1641428379461,0.00985849,3530.0,3529.9,0.00096276]
[1641428381763,0.00985849,3530.0,3529.0,7.6295]
[1641428381964,0.00985849,3530.0,3529.3,0.3]
[1641428382166,0.0129942,3530.6,3529.2,0.93751]
[1641428382167,0.00360583,3529.9,3529.2,0.93751]
[1641428382569,1.37171118,3531.1,3529.4,0.7082971]
[1641428382570,0.00303741,3529.8,3529.4,0.7082971]
[1641428382769,0.00303741,3529.8,3529.4,1.39269988]
[1641428383019,1.37171118,3531.1,3529.4,2.39269988]
[1641428383020,0.00246898,3529.7,3529.4,2.39269988]
[1641428383220,0.00246898,3529.7,3529.6,58.55]
[1641428383521,1.37171118,3531.1,3529.6,58.85]
[1641428383718,1.37171118,3531.1,3530.0,0.7081996]
[1641428383919,0.00985849,3531.0,3530.0,0.7081996]
[1641428384122,0.01292464,3530.9,3529.6,1.4163991]
[1641428384320,1.51663059,3530.6,3529.6,1.4163991]
[1641428384522,0.00872164,3530.8,3529.6,1.4163991]
[1641428384722,0.01292464,3530.9,3529.7,1.84122673]
[1641428384723,0.00701637,3530.5,3529.7,1.84122673]
[1641428384924,0.00815322,3530.7,3529.7,1.84122673]
[1641428385226,0.01292464,3530.9,3529.7,1.84122673]
[1641428385227,0.00758479,3530.6,3529.7,1.84122673]
[1641428385626,1.42506175,3529.9,3529.7,1.84122673]
[1641428386024,1.38543077,3529.8,3529.7,1.84122673]
[1641428386867,1.38543077,3529.8,3529.1,0.00094156]
[1641428387372,0.00246898,3529.7,3528.4,0.00492052]
[1641428387774,3.09102336,3529.8,3528.3,0.00548895]
[1641428387775,0.00190056,3529.6,3528.3,0.00548895]
[1641428388074,1.2001497,3529.0,3528.3,0.00548895]
[1641428389975,1.2001497,3529.0,3528.9,1.5]
[1641428390377,1.2001497,3529.0,3528.9,1.50207841]
[1641428390621,1.169,3528.9,3528.2,0.7025776]
[1641428391023,0.70885,3528.7,3528.3,0.00341054]
[1641428391223,0.6338,3528.9,3528.3,0.00341054]
[1641428391621,1.33792574,3528.4,3528.3,0.00341054]
[1641428398524,1.34258,3528.9,3528.3,0.00341054]
[1641428398525,0.6338,3528.9,3528.3,0.00341054]
[1641428399724,0.6338,3528.9,3528.3,0.30341054]
[1641428400123,0.6338,3528.9,3528.4,0.00284211]
[1641428400723,0.6338,3528.9,3528.4,0.64056211]
[1641428400925,0.6338,3528.9,3528.4,0.94056211]
[1641428401122,0.6338,3528.9,3528.5,0.00227369]
[1641428401624,0.6338,3528.9,3528.6,0.3]
[1641428402072,0.6338,3528.9,3528.7,0.00113684]
[1641428402470,0.6338,3528.9,3528.7,0.30113684]
[1641428402676,0.6338,3528.9,3528.7,1.71791274]
[1641428402875,0.6338,3528.9,3528.7,2.42635274]
[1641428403075,0.62667439,3528.9,3528.7,1.71791274]
[1641428403277,0.62667439,3528.9,3528.7,1.41791274]
[1641428403476,0.62667439,3528.9,3528.7,0.00113684]
[1641428403876,48.33929723,3528.8,3528.7,0.00113684]
[1641428404077,49.33929723,3528.8,3528.7,0.00113684]
[1641428404678,3.73929723,3528.8,3528.7,0.00113684]
[1641428404881,2.73929723,3528.8,3528.7,0.00113684]
[1641428408130,3.73929723,3528.8,3528.7,0.00113684]
[1641428408332,3.73929723,3528.8,3527.0,3.12923]
[1641428408333,46.1,3528.7,3527.0,0.63797]
[1641428408632,0.01294525,3528.4,3528.3,0.0022737]
[1641428409031,0.70896,3528.0,3526.7,2.01136847]
[1641428409273,1.16065727,3527.9,3527.1,0.63795]
[1641428409675,1.16065727,3527.9,3527.2,0.30852635]
[1641428410075,1.16065727,3527.9,3527.3,0.00795793]
[1641428410479,2.37466061,3527.9,3527.3,0.00795793]
[1641428410879,2.37466061,3527.9,3527.0,0.0096632]
[1641428411678,2.37466061,3527.9,3526.7,0.01136847]
[1641428411978,1.40894901,3527.3,3526.8,0.01080005]
[1641428412178,1.40894901,3527.3,3526.7,0.01136847]
[1641428412381,1.37549026,3527.2,3526.7,0.01136847]
[1641428412583,3.02049026,3527.2,3526.4,0.01307374]
[1641428413022,3.02049026,3527.2,3526.1,0.01315134]
[1641428413023,0.01237498,3526.9,3526.1,0.01315134]
[1641428413223,0.01237498,3526.9,3526.1,5.134e-05]
[1641428413423,0.01237498,3526.9,3524.8,1.0]
[1641428413626,1.19437725,3525.2,3524.8,1.0]
[1641428413824,1.19437725,3525.2,3524.9,0.0073895]
[1641428414325,1.06443264,3525.1,3524.9,0.0073895]
[1641428414729,2.48361114,3525.1,3524.9,0.0073895]
[1641428415130,3.48361114,3525.1,3524.9,0.0073895]
[1641428415325,3.78361114,3525.1,3524.9,0.0073895]
[1641428415527,0.3362,3524.8,3524.2,0.62667439]
[1641428415727,0.01223412,3524.3,3524.0,0.7025776]
[1641428415928,45.85,3524.2,3523.0,6.17]
[1641428416129,1.345,3524.1,3523.0,6.17]
[1641428416329,21.9372335,3524.1,3523.1,0.01023163]
[1641428416530,1.31719928,3524.0,3523.1,0.01023163]
[1641428416794,1.4198325,3523.7,3523.1,0.01023163]
[1641428416985,2.42118582,3523.6,3523.1,0.01023163]
[1641428417184,0.345,3523.5,3523.1,0.01023163]
[1641428417385,0.345,3523.5,3522.6,0.113043]
[1641428417386,3.78705295,3523.4,3522.7,0.01250532]
[1641428417584,17.84339506,3523.4,3522.7,0.01250532]
[1641428417787,2.51279199,3523.3,3522.7,0.01250532]
[1641428417984,0.71003,3523.1,3522.7,0.01250532]
[1641428418786,0.71003,3523.1,3522.2,6.17]
[1641428418787,45.85,3523.0,3522.2,6.17]
[1641428418989,45.85,3523.0,3520.5,5.7994]
[1641428418990,0.71009,3522.8,3520.6,3.7443]
[1641428419188,0.0123883,3522.6,3522.3,0.00227369]
[1641428419389,0.345,3522.5,3522.3,0.00227369]
[1641428419788,48.69339989,3522.4,3522.3,0.00227369]
[1641428420087,47.245,3522.4,3521.5,0.00462108]
[1641428420293,0.7102567,3522.1,3521.5,0.00462108]
[1641428420521,0.7102567,3522.1,3521.4,0.06766408]
[1641428420929,1.24755556,3521.5,3521.4,0.06766408]
[1641428421134,2.26830889,3521.5,3521.4,0.06766408]
[1641428422733,1.34784212,3522.0,3521.4,0.06766408]
[1641428422936,0.34784212,3522.0,3521.4,0.06766408]
[1641428423135,0.00227369,3521.9,3521.4,0.06766408]
[1641428423536,0.00170527,3521.8,3521.4,0.06766408]
[1641428423938,0.00113685,3521.7,3521.4,0.06766408]
[1641428424376,2.68098796,3522.1,3521.4,0.06766408]
[1641428424576,0.345,3522.0,3521.4,0.06766408]
[1641428424779,0.34784212,3522.0,3521.4,0.06766408]
[1641428424981,0.00227369,3521.9,3521.4,0.06766408]
[1641428425279,1.64004832,3522.0,3521.4,0.06766408]
[1641428425280,1.2554373,3521.6,3521.4,0.06766408]
[1641428426983,0.00227369,3521.9,3521.4,0.06766408]
[1641428427384,0.00170527,3521.8,3521.4,0.06766408]
[1641428427585,0.00170527,3521.8,3520.5,1.50160881]
[1641428427786,0.00113685,3521.7,3520.6,0.3]
[1641428428056,1.13088014,3521.5,3520.6,0.30511581]
[1641428428248,1.13088014,3521.5,3520.6,0.00511581]
[1641428428648,1.13088014,3521.5,3520.0,0.00852635]
[1641428428949,2.48765767,3521.5,3520.1,0.63916]
[1641428429348,2.48765767,3521.5,3520.2,0.00738951]
[1641428429550,2.48765767,3521.5,3520.2,0.30738951]
[1641428429950,2.48765767,3521.5,3520.3,0.00682108]
[1641428429951,1.13088014,3521.5,3520.3,0.00682108]
[1641428431054,4.1556,3522.5,3520.2,0.00738951]
[1641428431255,0.345,3522.5,3520.2,1.28552951]
[1641428431453,0.00511581,3522.4,3520.2,1.28552951]
[1641428431658,0.00511581,3522.4,3520.3,0.35182108]
[1641428431882,0.13819997,3523.0,3520.3,0.35182108]
[1641428431883,0.00454739,3522.3,3520.3,0.68926144]
[1641428432082,0.00454739,3522.3,3521.8,1.19037296]
[1641428432282,8.84868773,3523.5,3521.8,1.56747983]
[1641428432283,0.00397896,3522.2,3521.8,1.56747983]
[1641428432485,4.94868773,3523.5,3521.8,1.56747983]
[1641428432486,4.94868773,3523.5,3521.9,90.5]
[1641428432683,4.94868773,3523.5,3522.0,1.01281041]
[1641428432888,0.00682108,3523.4,3522.0,1.61394725]
[1641428433090,0.00682108,3523.4,3523.2,1.27701794]
[1641428433288,0.00625266,3523.3,3522.4,1.27736]
[1641428433488,0.00625266,3523.3,3522.5,0.345]
[1641428433690,0.00568424,3523.2,3522.5,0.345]
[1641428434088,4.94868773,3524.3,3522.5,0.345]
[1641428434089,0.00511581,3523.1,3522.5,0.345]
[1641428434489,0.00454739,3523.0,3522.5,0.345]
[1641428434889,0.00454739,3523.0,3522.0,0.00113684]
[1641428434890,1.48090005,3523.8,3522.0,0.00113684]
[1641428434891,0.00397897,3522.9,3522.0,0.00113684]
[1641428435092,0.0163651,3522.9,3522.0,0.00113684]
[1641428435389,0.00341054,3522.8,3521.5,2.16695158]
[1641428435828,0.00284212,3522.7,3521.6,0.00341054]
[1641428436027,0.00284212,3522.7,3521.8,1.18485844]
[1641428436226,0.0022737,3522.6,3521.8,1.18485844]
[1641428436429,0.0022737,3522.6,3521.9,0.00170527]
[1641428436636,0.00170527,3522.5,3521.9,0.00170527]
[1641428436930,0.00113685,3522.4,3521.9,0.00170527]
[1641428437328,0.00625266,3523.3,3521.9,0.00170527]
[1641428437729,0.00568424,3523.2,3521.9,0.00170527]
[1641428438032,0.00511581,3523.1,3521.9,0.00170527]
[1641428438234,1.13504671,3522.8,3521.9,0.00170527]
[1641428438630,0.00284212,3522.7,3521.9,0.00170527]
[1641428439030,0.0022737,3522.6,3521.9,0.00170527]
[1641428439276,0.0022737,3522.6,3521.3,0.00511581]
[1641428439481,0.00170527,3522.5,3521.3,0.00511581]
[1641428439881,1.27936312,3522.1,3521.3,0.00511581]
[1641428440082,0.00113685,3522.4,3521.3,0.00511581]
[1641428440286,0.00284212,3522.7,3521.3,0.00511581]
[1641428440482,0.00284212,3522.7,3521.1,0.00625266]
[1641428440684,0.0022737,3522.6,3521.1,0.00625266]
[1641428440987,1.73899149,3523.2,3521.3,0.01247145]
[1641428440988,0.00170527,3522.5,3521.3,0.01247145]
[1641428441383,1.33135649,3523.0,3521.4,0.00454739]
[1641428441384,0.00113685,3522.4,3521.4,0.00454739]
[1641428441784,0.00397897,3522.9,3521.4,0.00454739]
[1641428442183,0.00341054,3522.8,3521.7,1.20620999]
[1641428442385,0.00341054,3522.8,3521.7,1.50620999]
[1641428442586,0.00284212,3522.7,3521.8,0.00227369]
[1641428443027,0.0022737,3522.6,3521.8,0.00227369]
[1641428443427,0.00170527,3522.5,3521.8,0.00386763]
[1641428443630,0.00170527,3522.5,3521.8,0.00318788]
[1641428443826,0.00113685,3522.4,3521.9,0.00170527]
[1641428444026,1.31647992,3522.4,3521.9,0.00170527]
[1641428444227,1.31534307,3522.4,3521.9,0.00170527]
[1641428444630,0.00397897,3522.9,3521.9,0.00170527]
[1641428445033,0.00341054,3522.8,3521.9,0.00170527]
[1641428445432,0.345,3523.4,3521.9,0.00170527]
[1641428445433,0.00284212,3522.7,3521.9,0.00170527]
[1641428445835,0.0022737,3522.6,3521.9,0.71160027]
[1641428446033,0.0022737,3522.6,3521.9,1.67010124]
[1641428446236,0.63427622,3523.9,3522.0,0.00113684]
[1641428446237,0.00170527,3522.5,3522.0,0.00113684]
[1641428446633,0.00113685,3522.4,3522.0,0.00113684]
[1641428447072,1.35254546,3522.6,3522.1,0.7098201]
[1641428447274,1.35254546,3522.6,3522.0,0.00113684]
[1641428447472,0.00170527,3522.5,3522.0,0.00113684]
[1641428447678,0.00170527,3522.5,3521.9,0.00170527]
[1641428447876,1.40844559,3522.2,3521.9,0.00170527]
[1641428450834,1.70844559,3522.2,3521.9,0.00170527]
[1641428451036,0.01261085,3522.1,3521.9,0.00170527]
[1641428451235,1.70844559,3522.2,3521.9,0.00170527]
[1641428451449,2.70844559,3522.2,3521.9,0.00170527]
[1641428451637,16.47,3522.1,3521.9,0.00170527]
[1641428451839,47.13384484,3522.0,3521.9,0.00170527]
[1641428452039,1.53384484,3522.0,3521.9,0.00170527]
[1641428452237,2.53384484,3522.0,3521.9,0.00170527]
[1641428452538,22.33384484,3522.0,3521.9,0.00170527]
[1641428452737,39.80384484,3522.0,3521.9,0.00170527]
[1641428453140,39.80384484,3522.0,3521.9,0.00020527]
[1641428453141,64.90384484,3522.0,3521.9,0.00020527]
[1641428453342,65.62659046,3522.0,3521.9,0.00020527]
[1641428453742,40.52659046,3522.0,3521.9,0.00020527]
[1641428453946,40.90358182,3522.0,3521.9,0.00020527]
[1641428454142,40.87159046,3522.0,3521.9,0.00020527]
[1641428454387,40.87159046,3522.0,3521.8,9.394e-05]
[1641428454388,25.10143782,3521.9,3521.8,9.394e-05]
[1641428454592,26.45870794,3521.9,3521.8,9.394e-05]
[1641428454791,20.8,3521.8,3519.8,0.03545261]
[1641428454994,20.8,3521.8,3518.2,1.84122673]
[1641428454995,0.01237908,3520.1,3518.2,1.84122673]
[1641428455191,62.715,3520.0,3519.9,6.847e-05]
[1641428455391,62.715,3520.0,3518.2,1.84122673]
[1641428455596,1.10455091,3519.0,3518.9,0.41]
[1641428456392,10.74955091,3519.0,3518.9,0.0387]
[1641428456595,47.295,3519.0,3517.7,6.7726776]
[1641428456792,1.345,3519.0,3517.7,0.6026776]
[1641428456993,1.0,3518.9,3517.8,0.01193689]
[1641428457191,1.05591,3518.8,3517.8,0.01193689]
[1641428457792,1.18488105,3519.2,3517.8,0.01193689]
[1641428458024,1.18488105,3519.2,3517.7,0.56461449]
[1641428458223,0.00738951,3519.1,3517.7,0.56461449]
[1641428458626,0.00682108,3519.0,3517.7,0.86461449]
[1641428458825,0.00682108,3519.0,3518.1,1.0941769]
[1641428459027,0.00625266,3518.9,3518.1,1.0441769]
[1641428459328,1.18488105,3519.2,3517.7,0.56461449]
[1641428459329,0.00568423,3518.8,3517.7,0.56461449]
[1641428459729,0.00511581,3518.7,3517.7,0.56461449]
[1641428460127,0.00454739,3518.6,3517.7,0.56461449]
[1641428460329,0.00454739,3518.6,3518.0,1.17445799]
[1641428460528,1.13942844,3519.2,3518.0,1.17445799]
[1641428460728,1.13942844,3519.2,3518.1,0.00284212]
[1641428460930,0.00284212,3519.1,3518.1,0.00284212]
[1641428461328,0.00227369,3519.0,3518.1,0.00284212]
[1641428461777,0.00170527,3518.9,3518.1,0.00284212]
[1641428462177,0.00113684,3518.8,3518.1,0.00284212]
[1641428463384,0.00113684,3518.8,3518.2,1.4210868]
[1641428463583,0.00113684,3518.8,3518.4,0.71048]
[1641428463785,0.00113684,3518.8,3518.5,1.86841176]
[1641428464281,0.00113684,3518.8,3518.5,1.52900176]
[1641428464883,0.00113684,3518.8,3518.5,1.22900176]
[1641428465723,0.00113684,3518.8,3518.6,0.00156552]
[1641428473528,0.00113684,3518.8,3518.7,1.45066289]
[1641428474131,0.00113684,3518.8,3518.7,1.75066289]
[1641428474329,0.00113684,3518.8,3518.7,43.15066289]
[1641428474530,0.00113684,3518.8,3518.7,1.75066289]
[1641428475133,0.00113684,3518.8,3518.7,1.45066289]
[1641428475533,0.00113684,3518.8,3518.7,1.75066289]
[1641428476434,0.00113684,3518.8,3518.7,1.7522149]
[1641428477379,3.684e-05,3518.8,3518.7,0.00155201]
[1641428477579,3.9685,3520.9,3518.7,0.30155201]
[1641428477779,3.9685,3520.9,3519.7,0.7103244]
[1641428477978,0.01023163,3520.6,3519.7,0.7103244]
[1641428478176,0.01023163,3520.6,3519.8,0.3]
[1641428478376,0.0096632,3520.5,3519.5,4.2714]
[1641428478776,0.00909478,3520.4,3519.5,4.5714]
[1641428478979,0.00909478,3520.4,3519.6,0.7103431]
[1641428479177,0.00852636,3520.3,3519.7,0.3]
[1641428479576,0.00795793,3520.2,3519.7,0.3]
[1641428479979,0.00738951,3520.1,3519.7,0.3]
[1641428480381,0.00682109,3520.0,3519.6,0.7103431]
[1641428480621,0.00682109,3520.0,3519.7,0.3]
[1641428480824,5.266e-05,3519.9,3519.7,2.6597575]
[1641428481124,2.0,3522.0,3519.9,0.3]
[1641428481323,0.01237798,3522.3,3520.2,2.1300601]
[1641428481525,0.00909478,3521.5,3520.4,1.5]
[1641428481927,0.00852635,3521.4,3521.2,1.21417987]
[1641428482129,0.00852635,3521.4,3520.4,3.145]
[1641428482330,0.00795793,3521.3,3520.4,3.145]
[1641428482727,0.00738951,3521.2,3520.8,1.3490569]
[1641428483126,0.00682108,3521.1,3520.9,0.3]
[1641428483527,0.01237798,3522.3,3520.9,0.3]
[1641428483728,3.8023,3522.6,3520.9,2.75384615]
[1641428483930,0.00397897,3521.7,3521.5,0.7099776]
[1641428484131,0.00397897,3521.7,3521.6,1.3087184]
[1641428484373,0.13796311,3523.0,3521.6,1.3087184]
[1641428484773,1.27632619,3522.9,3521.6,3.44892659]
[1641428484973,1.27632619,3522.9,3521.6,1.3087184]
[1641428485176,0.01023162,3522.8,3522.1,0.63882]
[1641428485374,0.01023162,3522.8,3522.7,1.41067743]
[1641428485579,0.13796311,3523.0,3522.7,1.71067743]
[1641428485975,0.01080005,3522.9,3522.7,0.3]
[1641428486381,0.01023162,3522.8,3522.5,1.7193997]
[1641428486876,0.0096632,3522.7,3522.5,1.7193997]
[1641428487279,0.09705789,3523.0,3522.5,2.4290949]
[1641428487481,0.09705789,3523.0,3522.6,0.00103435]
[1641428487680,0.00170527,3522.9,3522.6,0.63973435]
[1641428488127,0.00113684,3522.8,3522.6,0.63973435]
[1641428488421,0.00113684,3522.8,3522.6,1.34942965]
[1641428488622,0.00113684,3522.8,3522.7,0.3]
[1641428489023,0.00113684,3522.8,3522.6,0.00103435]
[1641428491033,0.001,3521.9,3519.5,6.9232]
[1641428491226,0.001,3521.9,3520.3,1.5]
[1641428491227,0.0125896,3521.4,3520.3,1.5]
[1641428491429,0.0125896,3521.4,3519.6,3.93615271]
[1641428491784,0.0125896,3521.4,3519.7,0.01648428]
[1641428491984,0.0125896,3521.4,3520.1,0.7102536]
[1641428492285,0.001,3521.9,3520.6,0.71005]
[1641428492595,0.001,3521.9,3520.7,0.01080005]
[1641428492795,0.001,3521.9,3520.8,1.32163606]
[1641428492988,0.001,3521.9,3520.7,0.61080005]
[1641428493191,0.001,3521.9,3520.9,0.0096632]
[1641428493388,0.001,3521.9,3520.8,0.01023163]
[1641428493589,0.001,3521.9,3521.1,0.63898]
[1641428493789,0.001,3521.9,3521.2,0.7100017]
[1641428493988,0.001,3521.9,3521.2,1.01795963]
[1641428494190,0.001,3521.9,3521.3,0.00738951]
[1641428495089,0.001,3521.9,3521.4,0.7099822]
[1641428495526,1.15650626,3521.8,3521.5,0.00625266]
[1641428496128,1.15650626,3521.8,3520.5,0.0119369]
[1641428496626,1.15650626,3521.8,3520.7,0.7101357]
[1641428497025,1.15650626,3521.8,3520.8,0.01023163]
[1641428498032,1.15650626,3521.8,3520.9,0.00110092]
[1641428498234,1.31912136,3521.6,3520.9,0.00110092]
[1641428498435,0.001,3521.9,3521.0,0.00909478]
[1641428499279,0.001,3521.9,3521.3,0.7099926]
[1641428499688,0.001,3521.9,3521.4,1.46309651]
[1641428499884,0.001,3521.9,3521.4,1.76309651]
[1641428500086,0.001,3521.9,3521.5,0.00625266]
[1641428500890,0.001,3521.9,3521.4,0.00682109]
[1641428501885,1.16746987,3521.5,3521.4,0.00682109]
[1641428502286,1.16746987,3521.5,3521.0,0.00909478]
[1641428506983,16.47,3521.4,3521.0,0.00909478]
[1641428507183,44.81245811,3521.1,3521.0,0.00909478]
[1641428507384,0.35745811,3521.1,3521.0,0.00909478]
[1641428507786,1.44783629,3521.1,3521.0,0.00909478]
[1641428507985,31.19783629,3521.1,3521.0,0.00909478]
[1641428508186,32.19783629,3521.1,3521.0,0.00909478]
[1641428508793,17.99783629,3521.1,3521.0,0.00909478]
[1641428508990,2.44783629,3521.1,3519.1,0.01989482]
[1641428509189,17.91783629,3521.1,3519.2,0.0193264]
[1641428509388,17.91783629,3521.1,3519.1,0.01989482]
[1641428509589,17.90537818,3521.1,3519.2,0.0193264]
[1641428509890,17.90537818,3521.1,3519.1,1.44067892]
[1641428510090,17.90537818,3521.1,3519.2,0.3]
[1641428510091,18.61580818,3521.1,3519.2,0.3]
[1641428510291,1.31600228,3519.8,3519.2,0.0193264]
[1641428510554,1.31600228,3519.8,3519.3,0.01875798]
[1641428510753,1.31600228,3519.8,3519.4,0.7104512]
[1641428510953,1.31600228,3519.8,3519.3,0.01875798]
[1641428511152,1.31600228,3519.8,3519.5,0.01762113]
[1641428511353,1.43364609,3520.9,3519.2,0.3193264]
[1641428511551,1.43364609,3520.9,3519.3,1.25397335]
[1641428511552,1.51598594,3520.7,3519.3,1.25397335]
[1641428511750,1.51598594,3520.7,3519.3,0.01875798]
[1641428512051,0.5,3521.3,3519.7,0.3]
[1641428512251,0.5,3521.3,3519.3,0.05478985]
[1641428512452,1.2693411,3520.4,3519.8,0.01591586]
[1641428512656,1.2693411,3520.4,3519.4,1.73866955]
[1641428512855,1.2693411,3520.4,3519.8,0.01591586]
[1641428513054,1.2693411,3520.4,3519.9,1.42056]
[1641428513256,1.2693411,3520.4,3519.5,0.01762113]
[1641428513455,1.2693411,3520.4,3520.0,0.01477901]
[1641428513756,1.01221728,3519.7,3519.3,0.01875798]
[1641428514157,1.01221728,3519.7,3519.4,0.7104658]
[1641428514576,1.19545989,3520.2,3519.5,0.01762113]
[1641428515781,1.35966678,3519.7,3519.5,0.01762113]
[1641428516981,1.35966678,3519.7,3518.4,1.2433]
[1641428516982,1.0712893,3519.6,3519.0,0.02046325]
[1641428517382,1.14881929,3519.1,3519.0,0.02046325]
[1641428518830,1.42118,3520.3,3519.0,0.02046325]
[1641428519031,16.47,3520.6,3519.0,0.02046325]
[1641428519233,16.47,3520.6,3519.1,0.7105171]
[1641428519434,16.47,3520.6,3519.0,0.02327007]
[1641428519635,16.47,3520.6,3519.2,0.0193264]
[1641428519834,16.47,3520.6,3519.1,0.01989482]
[1641428520035,1.29876435,3519.5,3519.1,0.01989482]
[1641428520437,3.7897,3521.7,3519.5,1.29876435]
[1641428520438,4.50668,3521.4,3519.5,1.29876435]
[1641428520637,1.6751,3521.3,3520.0,1.4205969]
[1641428520837,0.5,3521.3,3519.6,0.01705271]
[1641428521037,0.5,3521.3,3520.1,0.01421059]
[1641428521237,0.5,3521.3,3519.6,0.01705271]
[1641428521435,0.5,3521.3,3520.3,0.7102096]
[1641428521436,1.05249013,3520.7,3520.3,0.7102096]
[1641428521653,1.05249013,3520.7,3520.4,0.3]
[1641428521882,0.15,3521.3,3520.4,1.73294092]
[1641428522075,0.15,3521.3,3520.5,0.0119369]
[1641428522584,0.15,3521.3,3520.5,0.3119369]
[1641428522984,0.15,3521.3,3520.0,1.03828248]
[1641428522985,1.3971712,3520.8,3520.6,0.01136847]
[1641428523386,1.3971712,3520.8,3520.2,1.42026]
[1641428523582,1.3971712,3520.8,3520.1,0.01421059]
[1641428523782,1.3971712,3520.8,3520.3,0.01307374]
[1641428523982,1.3971712,3520.8,3520.5,0.7102635]
[1641428524387,1.3971712,3520.8,3520.6,0.01136847]
[1641428524583,0.15,3521.3,3520.6,0.01136847]
[1641428525184,0.15,3521.3,3520.8,0.710184]
[1641428525626,0.15,3521.3,3520.9,0.0096632]
[1641428525830,1.21959653,3521.0,3520.9,0.0096632]
[1641428527030,1.21959653,3521.0,3520.7,0.01080005]
[1641428528632,1.21959653,3521.0,3520.7,0.72101715]
[1641428529034,1.21959653,3521.0,3520.8,0.01023163]
[1641428529887,1.21959653,3521.0,3520.9,0.00115457]
[1641428530388,1.21959653,3521.0,3520.9,0.01081777]
[1641428531190,0.15,3521.3,3520.9,0.01081777]
[1641428531694,0.15,3521.3,3521.0,0.71910838]
[1641428531893,0.15,3521.3,3521.0,1.01910838]
[1641428532094,0.15,3521.3,3521.1,0.00852636]
[1641428534154,0.15,3521.3,3521.1,0.04569426]
[1641428534356,0.001,3521.9,3521.2,93.75]
[1641428534554,0.001,3521.9,3521.4,0.70984]
[1641428534755,0.001,3521.9,3521.5,0.67033902]
[1641428534958,0.001,3521.9,3521.7,0.03960411]
[1641428535153,0.001,3521.9,3521.6,0.7098049]
[1641428535154,0.001,3521.9,3521.8,0.03816712]
[1641428535354,0.001,3521.9,3521.8,38.34271451]
[1641428535555,1.0222246,3522.5,3521.9,35.9]
[1641428535755,1.0222246,3522.5,3522.0,0.6388]
[1641428535956,1.0222246,3522.5,3522.0,0.67930712]
[1641428536157,1.0222246,3522.5,3522.1,0.00284212]
[1641428536778,1.0222246,3522.5,3522.1,1.42239332]
[1641428536978,1.0222246,3522.5,3522.3,0.63881]
[1641428537177,1.0222246,3522.5,3522.2,0.0022737]
[1641428537381,1.0222246,3522.5,3522.4,0.00113685]
[1641428537584,1.0222246,3522.5,3522.1,0.00284212]
[1641428537782,1.0222246,3522.5,3521.0,3.9592]
[1641428537783,1.0222246,3522.5,3521.4,0.00682109]
[1641428538080,1.0222246,3522.5,3521.1,0.00852636]
[1641428538281,1.21201438,3522.4,3521.1,0.00852636]
[1641428538484,1.03888782,3521.5,3521.1,0.00852636]
[1641428539288,1.03888782,3521.5,3521.0,0.00909478]